fUST/lending_fUST_20240917
["ID","MTS","AMOUNT","RATE_DAILY","PERIOD"]
[338355290,1726548549411,-250.0,0.00014822,2]
[338355291,1726548549433,-250.0,0.00014979,2]
[338355292,1726548549455,-250.0,0.0001502,2]
[338355293,1726548549477,-250.0,0.00015061,2]
[338355294,1726548549498,-250.0,0.00015102,2]
[338355295,1726548549519,-250.0,0.00015143,2]
[338355296,1726548549540,-3000.0,0.00015158,2]
[338355297,1726548549562,-250.0,0.00015184,2]
[338355298,1726548549583,-250.0,0.00015225,2]
[338355299,1726548549606,-250.0,0.00015266,2]
[338355300,1726548549626,-250.0,0.00015307,2]
[338355301,1726548549647,-250.0,0.00015348,2]
[338355302,1726548549669,-250.0,0.00015389,2]
[338355303,1726548549694,-250.0,0.0001543,2]
[338355304,1726548549717,-250.0,0.00015471,2]
[338355305,1726548549739,-250.0,0.00015513,2]
[338355306,1726548549760,-250.0,0.00015554,2]
[338355307,1726548549781,-250.0,0.00015595,2]
[338355308,1726548549802,-250.0,0.00015636,2]
[338355309,1726548549822,-420.0,0.00015661,2]
[338355310,1726548549843,-250.0,0.00015677,2]
[338355311,1726548549864,-250.0,0.00015718,2]
[338355312,1726548549886,-420.0,0.00015729,2]
[338355313,1726548549907,-250.0,0.00015759,2]
[338355314,1726548549932,-172.624228,0.00015858,2]
[338355315,1726548549953,-172.624228,0.00015937,2]
[338355316,1726548549974,-204.96739867,0.00016251,2]
[338355317,1726548549993,-8440.9729231,0.00016393,2]
[338355318,1726548550015,-500.0,0.00016785,2]
[338355319,1726548550036,-500.0,0.00016785,2]
[338355320,1726548550056,-500.0,0.00016785,2]
[338355321,1726548550081,-500.0,0.00016785,2]
[338355322,1726548550101,-500.0,0.00016785,2]
[338355323,1726548550122,-500.0,0.00016785,2]
[338355324,1726548550143,-1017.04276636,0.00016785,2]
[338355325,1726548550165,-370.28448367,0.00016785,2]
[338355326,1726548550189,-500.0,0.00016785,2]
[338355327,1726548550209,-500.0,0.00016785,2]
[338355328,1726548550229,-526.3567182,0.00016785,2]
[338355329,1726548550249,-273.4232973,0.00016785,2]
[338355330,1726548550271,-1017.04276636,0.00016785,2]
[338355331,1726548550292,-500.0,0.00016785,2]
[338355332,1726548550313,-1017.04276636,0.00016785,2]
[338355333,1726548550334,-500.0,0.00016785,2]
[338355334,1726548550354,-500.0,0.00016785,2]
[338355335,1726548550375,-387.99661647,0.00016785,2]
[338355336,1726548550397,-1017.04276636,0.00016785,2]
[338355337,1726548550417,-500.0,0.00016785,2]
[338355338,1726548550440,-1017.04276636,0.00016785,2]
[338355339,1726548550464,-157.78372674,0.00016785,2]
[338355340,1726548550484,-541.2333513,0.00016785,2]
[338355341,1726548550505,-500.0,0.00016785,2]
[338355342,1726548550526,-500.0,0.00016785,2]
[338355343,1726548550548,-1017.04276636,0.00016785,2]
[338355344,1726548550569,-1017.04276636,0.00016785,2]
[338355345,1726548550590,-1017.04276636,0.00016785,2]
[338355346,1726548550611,-1017.04276636,0.00016785,2]
[338355347,1726548550632,-1017.04276636,0.00016785,2]
[338355348,1726548550653,-1017.04276636,0.00016785,2]
[338355349,1726548550676,-1017.04276636,0.00016785,2]
[338355350,1726548550698,-1017.04276636,0.00016785,2]
[338355351,1726548550719,-1017.04276636,0.00016785,2]
[338355352,1726548550740,-1017.04276636,0.00016785,2]
[338355353,1726548550761,-1017.04276636,0.00016785,2]
[338355354,1726548550781,-1017.04276636,0.00016785,2]
[338355355,1726548550803,-1017.04276636,0.00016785,2]
[338355356,1726548550825,-1017.04276636,0.00016785,2]
[338355357,1726548550848,-1017.04276636,0.00016785,2]
[338355358,1726548550870,-1017.04276636,0.00016785,2]
[338355359,1726548550892,-1017.04276636,0.00016785,2]
[338355360,1726548550913,-1017.04276636,0.00016785,2]
[338355361,1726548550938,-1017.04276636,0.00016785,2]
[338355362,1726548550959,-1017.04276636,0.00016785,2]
[338355363,1726548550981,-1017.04276636,0.00016785,2]
[338355364,1726548551004,-1017.04276636,0.00016785,2]
[338355365,1726548551025,-1017.04276636,0.00016785,2]
[338355366,1726548551047,-1017.04276636,0.00016785,2]
[338355367,1726548551073,-1003.78810918,0.00016785,2]
[338355368,1726548568118,-1695.15627898,0.00016685,2]
[338355369,1726548568139,-505.7387183,0.00016685,2]
[338355370,1726548568164,-13.25465718,0.00016785,2]
[338355371,1726548568186,-1017.04276636,0.00016785,2]
[338355372,1726548568208,-1017.04276636,0.00016785,2]
[338355373,1726548568230,-1017.04276636,0.00016785,2]
[338355374,1726548568252,-1017.04276636,0.00016785,2]
[338355375,1726548568273,-1017.04276636,0.00016785,2]
[338355376,1726548568295,-1017.04276636,0.00016785,2]
[338355377,1726548568317,-1017.04276636,0.00016785,2]
[338355378,1726548568338,-1017.04276636,0.00016785,2]
[338355379,1726548568359,-1017.04276636,0.00016785,2]
[338355380,1726548568380,-1017.04276636,0.00016785,2]
[338355381,1726548568402,-961.73344462,0.00016785,2]
[338355487,1726548638145,-795.25274607,0.0001587,2]
[338355500,1726548638257,-282.15361393,0.0001587,2]
[338355502,1726548638268,-331.54840504,0.00016685,2]
[338355504,1726548638278,-282.35926126,0.00016784,2]
[338355506,1726548638287,-815.3215256,0.00016784,2]
[338355508,1726548638297,-265.33295739,0.00016784,2]
[338355510,1726548638306,-500.0,0.00016784,2]
[338355512,1726548638315,-500.0,0.00016784,2]
[338355514,1726548638324,-815.3215256,0.00016784,2]
[338355516,1726548638334,-500.0,0.00016784,2]
[338355518,1726548638344,-500.0,0.00016784,2]
[338355520,1726548638353,-500.0,0.00016784,2]
[338355522,1726548638363,-815.3215256,0.00016784,2]
[338355524,1726548638372,-500.0,0.00016784,2]
[338355526,1726548638382,-815.3215256,0.00016784,2]
[338355528,1726548638391,-500.0,0.00016784,2]
[338355530,1726548638401,-815.3215256,0.00016784,2]
[338355532,1726548638411,-500.0,0.00016784,2]
[338355534,1726548638420,-815.3215256,0.00016784,2]
[338355536,1726548638430,-500.0,0.00016784,2]
[338355538,1726548638439,-815.3215256,0.00016784,2]
[338355540,1726548638448,-500.0,0.00016784,2]
[338355542,1726548638458,-815.3215256,0.00016784,2]
[338355544,1726548638467,-500.0,0.00016784,2]
[338355545,1726548638477,-815.3215256,0.00016784,2]
[338355546,1726548638486,-500.0,0.00016784,2]
[338355547,1726548638496,-815.3215256,0.00016784,2]
[338355548,1726548638505,-500.0,0.00016784,2]
[338355549,1726548638516,-815.3215256,0.00016784,2]
[338355550,1726548638526,-500.0,0.00016784,2]
[338355551,1726548638537,-815.3215256,0.00016784,2]
[338355552,1726548638547,-815.3215256,0.00016784,2]
[338355553,1726548638556,-500.0,0.00016784,2]
[338355554,1726548638566,-815.3215256,0.00016784,2]
[338355555,1726548638575,-500.0,0.00016784,2]
[338355556,1726548638585,-815.3215256,0.00016784,2]
[338355557,1726548638594,-500.0,0.00016784,2]
[338355558,1726548638606,-815.3215256,0.00016784,2]
[338355559,1726548638615,-400.0,0.00016784,2]
[338355560,1726548638625,-815.3215256,0.00016784,2]
[338355561,1726548638634,-500.0,0.00016784,2]
[338355562,1726548638644,-815.3215256,0.00016784,2]
[338355563,1726548638653,-500.0,0.00016784,2]
[338355564,1726548638663,-815.3215256,0.00016784,2]
[338355565,1726548638672,-500.0,0.00016784,2]
[338355566,1726548638682,-815.3215256,0.00016784,2]
[338355567,1726548638692,-500.0,0.00016784,2]
[338355568,1726548638701,-500.0,0.00016784,2]
[338355569,1726548638711,-815.3215256,0.00016784,2]
[338355570,1726548638721,-500.0,0.00016784,2]
[338355571,1726548638731,-815.3215256,0.00016784,2]
[338355572,1726548638741,-500.0,0.00016784,2]
[338355573,1726548638750,-815.3215256,0.00016784,2]
[338355574,1726548638760,-500.0,0.00016784,2]
[338355575,1726548638770,-815.3215256,0.00016784,2]
[338355576,1726548638779,-500.0,0.00016784,2]
[338355577,1726548638789,-815.3215256,0.00016784,2]
[338355578,1726548638798,-815.3215256,0.00016784,2]
[338355579,1726548638808,-815.3215256,0.00016784,2]
[338355580,1726548638818,-815.3215256,0.00016784,2]
[338355581,1726548638828,-815.3215256,0.00016784,2]
[338355582,1726548638838,-815.3215256,0.00016784,2]
[338355583,1726548638851,-500.0,0.00016784,2]
[338355584,1726548638861,-815.3215256,0.00016784,2]
[338355585,1726548638870,-500.0,0.00016784,2]
[338355586,1726548638880,-815.3215256,0.00016784,2]
[338355587,1726548638889,-500.0,0.00016784,2]
[338355588,1726548638899,-815.3215256,0.00016784,2]
[338355589,1726548638910,-815.3215256,0.00016784,2]
[338355590,1726548638922,-815.3215256,0.00016784,2]
[338355591,1726548638932,-815.3215256,0.00016784,2]
[338355592,1726548638941,-815.3215256,0.00016784,2]
[338355593,1726548638951,-815.3215256,0.00016784,2]
[338355594,1726548638962,-815.3215256,0.00016784,2]
[338355595,1726548638972,-815.3215256,0.00016784,2]
[338355596,1726548638982,-815.3215256,0.00016784,2]
[338355597,1726548638992,-815.3215256,0.00016784,2]
[338355598,1726548639001,-815.3215256,0.00016784,2]
[338355599,1726548639011,-815.3215256,0.00016784,2]
[338355600,1726548639021,-815.3215256,0.00016784,2]
[338355601,1726548639030,-815.3215256,0.00016784,2]
[338355602,1726548639040,-815.3215256,0.00016784,2]
[338355603,1726548639050,-815.3215256,0.00016784,2]
[338355604,1726548639059,-815.3215256,0.00016784,2]
[338355605,1726548639069,-815.3215256,0.00016784,2]
[338355606,1726548639083,-815.3215256,0.00016784,2]
[338355607,1726548639092,-815.3215256,0.00016784,2]
[338355608,1726548639102,-815.3215256,0.00016784,2]
[338355609,1726548639111,-815.3215256,0.00016784,2]
[338355610,1726548639121,-815.3215256,0.00016784,2]
[338355611,1726548639131,-815.3215256,0.00016784,2]
[338355612,1726548639141,-815.3215256,0.00016784,2]
[338355613,1726548639150,-300.0,0.00016784,2]
[338355614,1726548639160,-505.73871829,0.00016811,2]
[338355615,1726548639171,-505.73871829,0.00016937,2]
[338355616,1726548639181,-2706.42906863,0.00016949,2]
[338355617,1726548639190,-288.0,0.00016949,2]
[338355618,1726548639200,-226.208863,0.00017,2]
[338355619,1726548639210,-1000.0,0.00017,2]
[338355620,1726548639219,-1000.0,0.00017036,2]
[338355621,1726548639230,-500.0,0.00017036,2]
[338355622,1726548639240,-179.34388261,0.00017036,2]
[338355623,1726548639249,-500.0,0.00017036,2]
[338355624,1726548639259,-500.0,0.00017036,2]
[338355625,1726548639269,-500.0,0.00017036,2]
[338355626,1726548639279,-500.0,0.00017036,2]
[338355627,1726548639288,-500.0,0.00017036,2]
[338355628,1726548639298,-500.0,0.00017036,2]
[338355629,1726548639308,-500.0,0.00017036,2]
[338355630,1726548639318,-500.0,0.00017036,2]
[338355631,1726548639328,-182.77125763,0.00017036,2]
[338355632,1726548639338,-500.0,0.00017036,2]
[338355633,1726548639347,-198.32383118,0.00017036,2]
[338355634,1726548639357,-500.0,0.00017036,2]
[338355635,1726548639367,-500.0,0.00017036,2]
[338355636,1726548639376,-500.0,0.00017036,2]
[338355637,1726548639385,-491.25505567,0.00017036,2]
[338355638,1726548639395,-500.0,0.00017036,2]
[338355639,1726548639405,-500.0,0.00017036,2]
[338355640,1726548639415,-500.0,0.00017036,2]
[338355641,1726548639424,-500.0,0.00017036,2]
[338355642,1726548639434,-500.0,0.00017036,2]
[338355643,1726548639445,-500.0,0.00017036,2]
[338355644,1726548639455,-179.46739979,0.00017036,2]
[338355645,1726548639465,-500.0,0.00017036,2]
[338355646,1726548639474,-500.0,0.00017036,2]
[338355647,1726548639484,-500.0,0.00017036,2]
[338355648,1726548639493,-500.0,0.00017036,2]
[338355649,1726548639503,-500.0,0.00017036,2]
[338355650,1726548639513,-500.0,0.00017036,2]
[338355651,1726548639523,-500.0,0.00017036,2]
[338355652,1726548639533,-500.0,0.00017036,2]
[338355653,1726548639543,-500.0,0.00017036,2]
[338355654,1726548639552,-500.0,0.00017036,2]
[338355655,1726548639562,-500.0,0.00017036,2]
[338355656,1726548639572,-500.0,0.00017036,2]
[338355657,1726548639581,-500.0,0.00017036,2]
[338355658,1726548639592,-500.0,0.00017036,2]
[338355659,1726548639602,-500.0,0.00017036,2]
[338355660,1726548639611,-832.21317958,0.00017036,2]
[338355661,1726548639621,-832.21317958,0.00017036,2]
[338355662,1726548639631,-832.21317958,0.00017036,2]
[338355663,1726548639641,-832.21317958,0.00017036,2]
[338355664,1726548639651,-832.21317958,0.00017036,2]
[338355665,1726548639660,-832.21317958,0.00017036,2]
[338355666,1726548639670,-832.21317958,0.00017036,2]
[338355667,1726548639679,-832.21317958,0.00017036,2]
[338355669,1726548639689,-832.21317958,0.00017036,2]
[338355670,1726548639699,-832.21317958,0.00017036,2]
[338355671,1726548639708,-832.21317958,0.00017036,2]
[338355672,1726548639718,-832.21317958,0.00017036,2]
[338355673,1726548639728,-832.21317958,0.00017036,2]
[338355674,1726548639738,-1248.31976936,0.00017036,2]
[338355676,1726548639748,-1000.0,0.00017037,2]
[338355678,1726548639758,-417869.001886,0.00017037,2]
[338355680,1726548639767,-8654.26455872,0.00017037,2]
[338355681,1726548639777,-176.64202104,0.00017037,2]
[338355682,1726548639787,-19472.0952571,0.00017039,2]
[338355683,1726548639796,-6490.69841904,0.00017042,2]
[338355685,1726548639806,-2163.56613968,0.00017052,2]
[338355687,1726548639815,-57738.44033073,0.00017062,2]
[338355689,1726548639825,-500.82512629,0.00017073,2]
[338355690,1726548639835,-500.0,0.00017073,2]
[338355691,1726548639845,-456.52500384,0.00017073,2]
[338355692,1726548639855,-500.0,0.00017073,2]
[338355693,1726548639864,-500.0,0.00017073,2]
[338355694,1726548639874,-500.0,0.00017073,2]
[338355695,1726548639883,-500.0,0.00017073,2]
[338355696,1726548639893,-500.0,0.00017073,2]
[338355697,1726548639902,-161.02001181,0.00017073,2]
[338355698,1726548639912,-500.0,0.00017073,2]
[338355699,1726548639922,-500.48513089,0.00017073,2]
[338355700,1726548639932,-562.43569413,0.00017073,2]
[338355701,1726548639942,-500.99330819,0.00017073,2]
[338355702,1726548639952,-500.0,0.00017073,2]
[338355703,1726548639961,-501.02034635,0.00017073,2]
[338355704,1726548639971,-500.0,0.00017073,2]
[338355705,1726548639981,-500.0,0.00017073,2]
[338355706,1726548639991,-4273.96858593,0.00017152,2]
[338355707,1726548640000,-2163.56613968,0.00017157,2]
[338355708,1726548640010,-151.16736949,0.00017162,2]
[338355709,1726548640021,-500.47227061,0.00017167,2]
[338355710,1726548640030,-500.0,0.00017167,2]
[338355711,1726548640039,-500.0,0.00017167,2]
[338355712,1726548640049,-2163.56613968,0.00017252,2]
[338355714,1726548640060,-1000.0,0.00017267,2]
[338355716,1726548640071,-1000.0,0.00017267,2]
[338355718,1726548640083,-1000.0,0.00017267,2]
[338355720,1726548640093,-1000.0,0.00017267,2]
[338355721,1726548640103,-1002.73351535,0.00017267,2]
[338355722,1726548640113,-999.40257335,0.00017281,2]
[338355723,1726548640123,-1695.15627896,0.00017296,2]
[338355724,1726548640132,-150.112233,0.000173,2]
[338355725,1726548640142,-150.112233,0.000173,2]
[338355726,1726548640153,-150.112233,0.000175,2]
[338355727,1726548640163,-150.112233,0.000176,2]
[338355728,1726548640173,-150.112233,0.000178,2]
[338355729,1726548640182,-150.112233,0.000179,2]
[338355730,1726548640191,-1695.15627896,0.00017908,2]
[338355731,1726548640202,-150.112233,0.000181,2]
[338355732,1726548640212,-2706.42906857,0.00018126,2]
[338355733,1726548640222,-150.112233,0.000182,2]
[338355734,1726548640233,-150.112233,0.000184,2]
[338355735,1726548640242,-7071.29712472,0.00018418,2]
[338355736,1726548640252,-2163.56613968,0.00018432,2]
[338355737,1726548640262,-1000.0,0.00018442,2]
[338355738,1726548640271,-715.41443216,0.00018442,2]
[338355739,1726548640281,-1000.0,0.00018442,2]
[338355740,1726548640291,-1000.0,0.00018442,2]
[338355741,1726548640301,-420.0,0.00018462,2]
[338355742,1726548640311,-150.112233,0.000185,2]
[338355743,1726548640321,-1695.15627896,0.00018519,2]
[338355744,1726548640330,-380.78574981,0.00018537,2]
[338355745,1726548640340,-150.112233,0.000186,2]
[338355746,1726548640349,-150.112233,0.000188,2]
[338355747,1726548640360,-358.93283187,0.000188,2]
[338355748,1726548640369,-7071.29712472,0.00018871,2]
[338355749,1726548640379,-150.112233,0.000189,2]
[338355750,1726548640389,-7071.29712472,0.00018946,2]
[338355751,1726548640398,-432.34422366,0.00019041,2]
[338355752,1726548640408,-316.36501681,0.00019041,2]
[338355753,1726548640418,-150.112233,0.000191,2]
[338355754,1726548640427,-3000.0,0.000191,2]
[338355755,1726548640437,-3000.0,0.0001911,2]
[338355756,1726548640453,-3000.0,0.0001912,2]
[338355757,1726548640462,-3000.0,0.0001913,2]
[338355758,1726548640472,-1695.15627896,0.0001913,2]
[338355759,1726548640481,-3000.0,0.0001914,2]
[338355760,1726548640491,-3000.0,0.0001915,2]
[338355761,1726548640500,-432.34422366,0.00019151,2]
[338355762,1726548640510,-316.36501681,0.00019151,2]
[338355763,1726548640520,-3000.0,0.0001916,2]
[338355764,1726548640530,-3000.0,0.0001917,2]
[338355765,1726548640540,-1000.0,0.00019178,2]
[338355766,1726548640549,-162.63545,0.00019178,2]
[338355767,1726548640559,-2708.420237,0.00019178,2]
[338355768,1726548640568,-161.870026,0.00019178,2]
[338355769,1726548640581,-500.0,0.00019179,2]
[338355770,1726548640804,-3000.0,0.0001918,2]
[338355771,1726548640816,-2000.0,0.00019186,2]
[338355772,1726548640826,-2000.0,0.00019186,2]
[338355773,1726548640835,-2000.0,0.00019186,2]
[338355774,1726548640844,-2000.0,0.00019186,2]
[338355775,1726548640854,-2000.0,0.00019186,2]
[338355776,1726548640863,-1462.69999118,0.00019186,2]
[338355777,1726548640872,-3000.0,0.0001919,2]
[338355778,1726548640882,-150.112233,0.000192,2]
[338355779,1726548640892,-3000.0,0.000192,2]
[338355780,1726548640901,-3000.0,0.0001921,2]
[338355781,1726548640910,-3000.0,0.0001922,2]
[338355782,1726548640920,-3000.0,0.0001923,2]
[338355783,1726548640929,-432.34422366,0.00019233,2]
[338355784,1726548640939,-316.36501681,0.00019233,2]
[338355785,1726548640948,-3000.0,0.0001924,2]
[338355786,1726548640957,-7071.29712472,0.00019246,2]
[338355787,1726548640967,-3000.0,0.0001925,2]
[338355788,1726548640976,-3000.0,0.0001926,2]
[338355789,1726548640986,-3000.0,0.0001927,2]
[338355790,1726548640995,-3000.0,0.0001928,2]
[338355791,1726548641005,-170.5,0.00019287,2]
[338355792,1726548641018,-3000.0,0.0001929,2]
[338355793,1726548641027,-3000.0,0.000193,2]
[338355794,1726548641037,-2706.42906857,0.00019303,2]
[338355795,1726548641046,-3000.0,0.0001931,2]
[338355796,1726548641056,-432.34422366,0.00019315,2]
[338355797,1726548641065,-316.36501681,0.00019315,2]
[338355798,1726548641076,-3000.0,0.0001932,2]
[338355799,1726548641086,-3000.0,0.0001933,2]
[338355800,1726548641095,-3000.0,0.0001934,2]
[338355801,1726548641104,-3000.0,0.0001935,2]
[338355802,1726548641113,-151.0,0.00019352,2]
[338355803,1726548641122,-151.0,0.00019352,2]
[338355804,1726548641132,-3000.0,0.0001936,2]
[338355805,1726548641143,-3000.0,0.0001937,2]
[338355806,1726548641152,-175.033086,0.00019376,2]
[338355807,1726548641161,-175.033086,0.00019376,2]
[338355808,1726548641170,-3000.0,0.0001938,2]
[338355809,1726548641179,-3000.0,0.0001939,2]
[338355810,1726548641189,-150.112233,0.000194,2]
[338355811,1726548641198,-3723.131914,0.000194,2]
[338355812,1726548641208,-432.34422366,0.00019425,2]
[338355813,1726548641218,-316.36501681,0.00019425,2]
[338355814,1726548641227,-411.4520728,0.00019452,2]
[338355815,1726548641237,-170.5,0.00019457,2]
[338355816,1726548641247,-756.779,0.00019483,2]
[338355817,1726548641256,-150.112233,0.000195,2]
[338355818,1726548641266,-432.34422366,0.00019507,2]
[338355819,1726548641275,-316.36501681,0.00019507,2]
[338355820,1726548641285,-173.32830779,0.00019562,2]
[338355821,1726548641294,-600.195,0.00019598,2]
[338355822,1726548641304,-150.556,0.00019598,2]
[338355823,1726548641314,-688.083,0.00019598,2]
[338355824,1726548641323,-169.527,0.00019598,2]
[338355825,1726548641332,-48571.639,0.00019598,2]
[338355826,1726548641342,-432.34422366,0.00019616,2]
[338355827,1726548641351,-316.36501681,0.00019616,2]
[338355828,1726548641360,-170.5,0.00019628,2]
[338355829,1726548641370,-7071.29712472,0.00019635,2]
[338355830,1726548641380,-432.34422366,0.00019699,2]
[338355831,1726548641389,-316.36501681,0.00019699,2]
[338355832,1726548641398,-150.112233,0.000197,2]
[338355833,1726548641407,-150.112233,0.000197,2]
[338355834,1726548641416,-432.34422366,0.00019781,2]
[338355835,1726548641426,-316.36501681,0.00019781,2]
[338355836,1726548641435,-213.489918,0.00019781,2]
[338355837,1726548641445,-170.5,0.00019798,2]
[338355838,1726548641454,-500.0,0.00019825,2]
[338355839,1726548641464,-7071.29712472,0.00019839,2]
[338355840,1726548641473,-500.0,0.0001984,2]
[338355841,1726548641482,-2708.420237,0.00019863,2]
[338355842,1726548641492,-432.34422366,0.0001989,2]
[338355843,1726548641501,-316.36501681,0.0001989,2]
[338355844,1726548641511,-300.0,0.000199,8]
[338355845,1726548641520,-1034.03,0.000199,2]
[338355846,1726548641530,-170.5,0.00019968,2]
[338355847,1726548641539,-432.34422366,0.00019973,2]
[338355848,1726548641549,-316.36501681,0.00019973,2]
[338355849,1726548641558,-500.0,0.00019973,2]
[338355850,1726548641568,-500.0,0.00019973,2]
[338355851,1726548641579,-160.0,0.00019999,2]
[338355852,1726548641588,-58457.32900025,0.0002,5]
[338355853,1726548641597,-151.0,0.0002,2]
[338355854,1726548641607,-151.0,0.0002,2]
[338355855,1726548641616,-151.0,0.0002,2]
[338355856,1726548641626,-151.0,0.0002,2]
[338355857,1726548641636,-151.0,0.0002,2]
[338355858,1726548641645,-151.0,0.0002,2]
[338355859,1726548641653,-151.0,0.0002,2]
[338355860,1726548641663,-151.0,0.0002,2]
[338355861,1726548641672,-151.0,0.0002,2]
[338355862,1726548641682,-184.5,0.0002,2]
[338355863,1726548641691,-151.0,0.0002,2]
[338355864,1726548641701,-151.0,0.0002,2]
[338355865,1726548641710,-151.0,0.0002,2]
[338355867,1726548641719,-71680.11,0.0002,2]
[338355869,1726548641728,-618.53756452,0.0002,2]
[338355870,1726548641738,-335799.19869294,0.0002,2]
[338355871,1726548641747,-104835.81,0.0002,2]
[338355872,1726548641757,-466694.13,0.0002,2]
[338355873,1726548641768,-3270.68,0.0002,2]
[338355874,1726548641778,-151.0,0.0002,2]
[338355875,1726548641787,-151.0,0.0002,2]
[338355876,1726548641796,-151.0,0.0002,2]
[338355877,1726548641805,-151.0,0.0002,2]
[338355878,1726548641814,-151.0,0.0002,2]
[338355879,1726548641824,-846.282637,0.0002,2]
[338355880,1726548641834,-846.282637,0.0002,2]
[338355881,1726548641843,-400.49115,0.0002,2]
[338355882,1726548641852,-400.49115,0.0002,2]
[338355883,1726548641862,-151.0,0.0002,2]
[338355884,1726548641871,-151.0,0.0002,2]
[338355885,1726548641881,-151.0,0.0002,2]
[338355886,1726548641890,-155.280629,0.0002,2]
[338355887,1726548641900,-967.684738,0.0002,2]
[338355888,1726548641909,-967.684738,0.0002,2]
[338355889,1726548641919,-175.75823356,0.0002,2]
[338355890,1726548641927,-1691.326106,0.0002,2]
[338355891,1726548641937,-151.0,0.0002,2]
[338355892,1726548641946,-990.62956,0.0002,2]
[338355893,1726548641955,-990.62956,0.0002,2]
[338355894,1726548641965,-151.0,0.0002,2]
[338355895,1726548641974,-616.574247,0.0002,2]
[338355896,1726548641983,-151.0,0.0002,2]
[338355897,1726548641993,-173.647869,0.0002,2]
[338355898,1726548642002,-151.0,0.0002,2]
[338355899,1726548642013,-173.647869,0.0002,2]
[338355900,1726548642022,-151.0,0.0002,2]
[338355901,1726548642032,-151.0,0.0002,2]
[338355902,1726548642041,-151.0,0.0002,2]
[338355903,1726548642050,-151.0,0.0002,2]
[338355904,1726548642060,-791.536608,0.0002,2]
[338355905,1726548642070,-305.490198,0.0002,2]
[338355906,1726548642083,-791.536608,0.0002,2]
[338355907,1726548642092,-305.490198,0.0002,2]
[338355908,1726548642101,-917.23697,0.0002,2]
[338355909,1726548642110,-917.23697,0.0002,2]
[338355910,1726548642119,-305.490198,0.0002,2]
[338355911,1726548642128,-305.490198,0.0002,2]
[338355912,1726548642138,-917.23697,0.0002,2]
[338355913,1726548642147,-151.0,0.0002,2]
[338355914,1726548642156,-917.23697,0.0002,2]
[338355915,1726548642166,-151.0,0.0002,2]
[338355916,1726548642175,-153.565439,0.0002,2]
[338355917,1726548642185,-151.0,0.0002,2]
[338355918,1726548642194,-1923.832792,0.0002,2]
[338355919,1726548642204,-151.0,0.0002,2]
[338355920,1726548642213,-351.657342,0.0002,2]
[338355921,1726548642223,-351.657342,0.0002,2]
[338355922,1726548642232,-351.657342,0.0002,2]
[338355923,1726548642241,-1923.832792,0.0002,2]
[338355924,1726548642250,-351.657342,0.0002,2]
[338355925,1726548642259,-291.050099,0.0002,2]
[338355926,1726548642270,-151.0,0.0002,2]
[338355927,1726548642279,-151.0,0.0002,2]
[338355928,1726548642289,-151.0,0.0002,2]
[338355929,1726548642298,-151.0,0.0002,2]
[338355930,1726548642307,-270.461735,0.0002,2]
[338355931,1726548642317,-270.461735,0.0002,2]
[338355932,1726548642326,-270.461735,0.0002,2]
[338355933,1726548642335,-270.461735,0.0002,2]
[338355934,1726548642344,-426.9621,0.0002,2]
[338355935,1726548642354,-426.9621,0.0002,2]
[338355936,1726548642363,-426.9621,0.0002,2]
[338355937,1726548642371,-426.9621,0.0002,2]
[338355938,1726548642381,-152.765858,0.0002,2]
[338355939,1726548642391,-266.281909,0.0002,2]
[338355940,1726548642400,-266.281909,0.0002,2]
[338355941,1726548642409,-266.281909,0.0002,2]